fUST/lending_fUST_20250724
["ID","MTS","AMOUNT","RATE_DAILY","PERIOD"]
[374450162,1753305046467,-460.0,0.00022114,2]
[374450164,1753305046479,-1581.5,0.00022115,2]
[374450166,1753305046489,-460.0,0.00022115,2]
[374450168,1753305046498,-1064.07,0.00022115,2]
[374450170,1753305046508,-492.75,0.00022116,2]
[374450172,1753305046517,-460.0,0.00022118,2]
[374450174,1753305046527,-1156.51,0.00022119,2]
[374450176,1753305046536,-460.0,0.00022119,2]
[374450177,1753305046545,-608.29,0.00022119,2]
[374450180,1753305046555,-470.68,0.00022119,2]
[374450181,1753305046564,-501.58,0.00022119,2]
[374450183,1753305046574,-753.03,0.00022119,2]
[374450185,1753305046583,-153.0,0.00022192,7]
[374450187,1753305046592,-640.7,0.00022234,5]
[374450189,1753305046601,-652.0,0.0002227,2]
[374450191,1753305046611,-153.7365877,0.00022274,2]
[374450193,1753305046620,-153.0,0.00022274,2]
[374450195,1753305046630,-153.0,0.00022274,2]
[374450197,1753305046646,-153.0,0.00022274,2]
[374450199,1753305046661,-223.0315306,0.00022314,2]
[374450202,1753305046670,-652.0,0.00022357,2]
[374450204,1753305046681,-891.21,0.00022388,2]
[374450206,1753305046691,-686.53,0.00022388,2]
[374450207,1753305046700,-460.0,0.00022388,2]
[374450209,1753305046709,-1581.5,0.00022389,2]
[374450211,1753305046721,-460.0,0.00022389,2]
[374450213,1753305046733,-1064.07,0.00022389,2]
[374450215,1753305046743,-460.0,0.00022392,2]
[374450217,1753305046751,-1156.51,0.00022393,2]
[374450219,1753305046761,-460.0,0.00022393,2]
[374450221,1753305046772,-608.29,0.00022393,2]
[374450223,1753305046782,-470.68,0.00022393,2]
[374450225,1753305046792,-501.58,0.00022393,2]
[374450227,1753305046802,-753.03,0.00022393,2]
[374450229,1753305046811,-459.0,0.00022421,2]
[374450231,1753305046821,-598.0,0.00022422,2]
[374450233,1753305046830,-808.49369971,0.00022436,2]
[374450235,1753305046840,-150.494,0.00022451,2]
[374450237,1753305046850,-150.0,0.00022451,2]
[374450239,1753305046860,-150.0,0.00022451,2]
[374450241,1753305046869,-150.93,0.00022451,2]
[374450243,1753305046878,-2060.91,0.00022465,2]
[374450245,1753305046888,-151.0,0.00022473,7]
[374450247,1753305046897,-151.0,0.00022473,7]
[374450249,1753305046906,-151.0,0.00022473,7]
[374450251,1753305046915,-151.0,0.00022473,7]
[374450253,1753305046923,-283.059249,0.00022473,7]
[374450255,1753305046931,-283.059249,0.00022473,7]
[374450257,1753305046941,-2122.386635,0.00022473,7]
[374450259,1753305046950,-2122.386635,0.00022473,7]
[374450261,1753305046959,-12622.36869388,0.0002248,7]
[374450263,1753305046969,-151.0,0.000225,7]
[374450264,1753305046979,-151.0,0.000225,7]
[374450266,1753305046988,-151.0,0.000225,7]
[374450268,1753305046997,-151.0,0.000225,7]
[374450270,1753305047006,-151.0,0.000225,7]
[374450272,1753305047015,-151.0,0.000225,7]
[374450274,1753305047023,-151.0,0.000225,7]
[374450276,1753305047033,-151.0,0.000225,7]
[374450277,1753305047042,-211.566,0.000225,7]
[374450278,1753305047051,-1965.552282,0.000225,7]
[374450279,1753305047060,-1965.552282,0.000225,7]
[374450280,1753305047069,-1965.552282,0.000225,7]
[374450281,1753305047078,-1965.552282,0.000225,7]
[374450282,1753305047087,-283.059249,0.000225,7]
[374450283,1753305047096,-283.059249,0.000225,7]
[374450284,1753305047105,-283.059249,0.000225,7]
[374450285,1753305047114,-283.059249,0.000225,7]
[374450286,1753305047123,-2122.386635,0.000225,7]
[374450287,1753305047132,-2122.386635,0.000225,7]
[374450288,1753305047143,-2122.386635,0.000225,7]
[374450289,1753305047152,-2122.386635,0.000225,7]
[374450290,1753305047161,-151.0,0.000225,7]
[374450292,1753305047170,-560.0,0.00022519,2]
[374450294,1753305047180,-652.0,0.00022526,2]
[374450296,1753305047189,-364.950859,0.00022539,8]
[374450298,1753305047199,-640.7,0.00022542,5]
[374450300,1753305047208,-652.0,0.00022557,2]
[374450302,1753305047217,-891.21,0.00022662,2]
[374450304,1753305047230,-686.53,0.00022662,2]
[374450306,1753305047240,-460.0,0.00022662,2]
[374450308,1753305047249,-1581.5,0.00022663,2]
[374450310,1753305047259,-460.0,0.00022663,2]
[374450312,1753305047268,-1064.07,0.00022663,2]
[374450314,1753305047277,-151.0,0.00022666,7]
[374450316,1753305047286,-151.0,0.00022666,7]
[374450318,1753305047296,-460.0,0.00022666,2]
[374450320,1753305047305,-151.0,0.00022666,7]
[374450322,1753305047314,-218.178473,0.00022666,7]
[374450324,1753305047324,-218.178473,0.00022666,7]
[374450326,1753305047333,-1156.51,0.00022667,2]
[374450328,1753305047343,-460.0,0.00022667,2]
[374450330,1753305047352,-608.29,0.00022667,2]
[374450332,1753305047361,-470.68,0.00022667,2]
[374450334,1753305047371,-501.58,0.00022667,2]
[374450336,1753305047380,-753.03,0.00022667,2]
[374450338,1753305047390,-800.0,0.00022747,2]
[374450340,1753305047402,-151.0,0.00022773,2]
[374450342,1753305047412,-151.0,0.00022773,2]
[374450344,1753305047421,-151.0,0.00022773,2]
[374450346,1753305047430,-151.0,0.00022773,2]
[374450348,1753305047439,-500.0,0.00022773,2]
[374450350,1753305047449,-297.59033289,0.00022773,2]
[374450352,1753305047459,-151.0,0.00022773,2]
[374450354,1753305047471,-199.06013017,0.00022773,2]
[374450356,1753305047480,-151.0,0.00022773,2]
[374450358,1753305047489,-260.48410387,0.00022773,2]
[374450360,1753305047499,-153.27205823,0.00022773,2]
[374450375,1753305047625,-151.63033314,0.00022773,2]
[374450377,1753305047636,-151.0,0.00022773,2]
[374450379,1753305047646,-151.0,0.00022773,2]
[374450381,1753305047656,-247.18116899,0.00022773,2]
[374450383,1753305047665,-572.0,0.00022773,2]
[374450385,1753305047674,-151.0,0.00022773,2]
[374450387,1753305047684,-1600.82623512,0.00022776,2]
[374450389,1753305047693,-652.0,0.00022797,2]
[374450391,1753305047702,-323.738712,0.000228,3]
[374450393,1753305047711,-323.738712,0.000228,3]
[374450395,1753305047721,-153.0,0.00022822,2]
[374450397,1753305047735,-153.0,0.00022822,2]
[374450399,1753305047744,-153.0,0.00022822,2]
[374450401,1753305047753,-153.0,0.00022822,2]
[374450402,1753305047762,-640.7,0.00022849,6]
[374450404,1753305047772,-652.0,0.0002287,2]
[374450406,1753305047781,-150.0,0.0002288,2]
[374450408,1753305047790,-1965.552282,0.00022885,7]
[374450411,1753305047799,-1965.552282,0.00022885,7]
[374450413,1753305047808,-151.0,0.000229,7]
[374450415,1753305047819,-285.623926,0.000229,7]
[374450416,1753305047830,-151.0,0.000229,7]
[374450418,1753305047839,-151.0,0.000229,7]
[374450421,1753305047850,-151.0,0.000229,7]
[374450422,1753305047860,-283.059249,0.000229,7]
[374450424,1753305047870,-283.059249,0.000229,7]
[374450426,1753305047879,-2122.386635,0.000229,7]
[374450428,1753305047888,-2122.386635,0.000229,7]
[374450430,1753305047897,-652.0,0.00022929,2]
[374450432,1753305047906,-1965.552282,0.00022929,7]
[374450434,1753305047915,-1965.552282,0.00022929,7]
[374450436,1753305047925,-652.0,0.0002293,2]
[374450438,1753305047934,-891.21,0.00022936,2]
[374450440,1753305047943,-686.53,0.00022936,2]
[374450442,1753305047952,-460.0,0.00022936,2]
[374450444,1753305047961,-1581.5,0.00022937,2]
[374450446,1753305047971,-460.0,0.00022937,2]
[374450448,1753305047980,-1064.07,0.00022937,2]
[374450450,1753305047989,-460.0,0.0002294,2]
[374450452,1753305047999,-294.37792257,0.0002294,2]
[374450454,1753305048008,-3326.95811755,0.0002294,2]
[374450456,1753305048018,-1156.51,0.00022941,2]
[374450458,1753305048027,-460.0,0.00022941,2]
[374450460,1753305048036,-608.29,0.00022941,2]
[374450462,1753305048045,-470.68,0.00022941,2]
[374450464,1753305048055,-501.58,0.00022941,2]
[374450466,1753305048064,-753.03,0.00022941,2]
[374450468,1753305048074,-500.0,0.00022973,2]
[374450470,1753305048083,-500.0,0.00022973,2]
[374450472,1753305048092,-501.4575332,0.00022973,2]
[374450474,1753305048102,-500.0,0.00022973,2]
[374450476,1753305048111,-500.55403074,0.00022973,2]
[374450478,1753305048120,-500.0,0.00022973,2]
[374450480,1753305048129,-500.0,0.00022973,2]
[374450482,1753305048138,-500.0,0.00022973,2]
[374450484,1753305048147,-500.0,0.00022973,2]
[374450486,1753305048157,-500.0,0.00022973,2]
[374450488,1753305048166,-500.0,0.00022973,2]
[374450490,1753305048176,-350.0,0.00022973,2]
[374450492,1753305048185,-500.0,0.00022973,2]
[374450494,1753305048194,-500.0,0.00022973,2]
[374450496,1753305048204,-500.0,0.00022973,2]
[374450498,1753305048213,-500.0,0.00022973,2]
[374450500,1753305048228,-500.0,0.00022973,2]
[374450502,1753305048238,-504.74859818,0.00022973,2]
[374450504,1753305048247,-500.0,0.00022973,2]
[374450506,1753305048257,-161.66149391,0.00022973,2]
[374450508,1753305048266,-619.07791208,0.00022973,2]
[374450510,1753305048276,-500.0,0.00022973,2]
[374450512,1753305048286,-500.0,0.00022973,2]
[374450514,1753305048295,-500.0,0.00022973,2]
[374450516,1753305048305,-500.0,0.00022973,2]
[374450518,1753305048315,-500.0,0.00022973,2]
[374450520,1753305048325,-540.13657752,0.00022973,2]
[374450522,1753305048335,-500.0,0.00022973,2]
[374450524,1753305048345,-502.478894,0.00022973,2]
[374450526,1753305048355,-500.0,0.00022973,2]
[374450528,1753305048364,-500.0,0.00022973,2]
[374450530,1753305048374,-500.0,0.00022973,2]
[374450532,1753305048384,-500.71124233,0.00022973,2]
[374450534,1753305048393,-500.0,0.00022973,2]
[374450536,1753305048402,-500.0,0.00022973,2]
[374450538,1753305048413,-500.0,0.00022973,2]
[374450540,1753305048424,-540.84898244,0.00022973,2]
[374450542,1753305048433,-500.0,0.00022973,2]
[374450544,1753305048443,-168.06222679,0.00022973,2]
[374450546,1753305048452,-500.0,0.00022973,2]
[374450548,1753305048462,-500.0,0.00022973,2]
[374450550,1753305048475,-500.0,0.00022973,2]
[374450552,1753305048485,-500.0,0.00022973,2]
[374450554,1753305048495,-151.0,0.00022973,7]
[374450556,1753305048504,-151.0,0.00022973,7]
[374450558,1753305048514,-283.059249,0.00022973,7]
[374450560,1753305048524,-283.059249,0.00022973,7]
[374450562,1753305048534,-2122.386635,0.00022973,7]
[374450564,1753305048544,-2122.386635,0.00022973,7]
[374450566,1753305048553,-151.0,0.00022973,7]
[374450568,1753305048564,-156.974998,0.00022973,7]
[374450570,1753305048574,-151.0,0.00022973,7]
[374450572,1753305048583,-151.0,0.00022974,7]
[374450574,1753305048593,-151.0,0.00022974,7]
[374450576,1753305048602,-500.0,0.00022996,8]
[374450578,1753305048611,-714.73342291,0.00022999,2]
[374450580,1753305048621,-7321.98348764,0.00023,10]
[374450582,1753305048637,-29866.68185137,0.00023,4]
[374450584,1753305048658,-151.0,0.00023,7]
[374450586,1753305048670,-151.0,0.00023,7]
[374450588,1753305048679,-151.0,0.00023,7]
[374450590,1753305048689,-151.0,0.00023,7]
[374450592,1753305048699,-151.0,0.00023,7]
[374450594,1753305048708,-151.0,0.00023,7]
[374450596,1753305048718,-151.0,0.00023,7]
[374450598,1753305048732,-151.0,0.00023,7]
[374450600,1753305048741,-151.0,0.00023,7]
[374450602,1753305048751,-193.400257,0.00023,7]
[374450604,1753305048760,-193.400257,0.00023,7]
[374450606,1753305048771,-151.0,0.00023,7]
[374450608,1753305048780,-151.0,0.00023,7]
[374450610,1753305048789,-151.0,0.00023,7]
[374450612,1753305048798,-160.0,0.00023,3]
[374450614,1753305048808,-151.0,0.00023,7]
[374450616,1753305048818,-151.0,0.00023,7]
[374450618,1753305048827,-221.256151,0.00023,7]
[374450620,1753305048837,-182.933249,0.00023,7]
[374450622,1753305048847,-182.933249,0.00023,7]
[374450624,1753305048856,-182.933249,0.00023,7]
[374450626,1753305048866,-182.933249,0.00023,7]
[374450628,1753305048875,-151.0,0.00023,7]
[374450630,1753305048884,-151.0,0.00023,7]
[374450632,1753305048894,-151.0,0.00023,7]
[374450634,1753305048903,-151.0,0.00023,7]
[374450636,1753305048913,-151.0,0.00023,7]
[374450638,1753305048922,-151.0,0.00023,7]
[374450640,1753305048931,-151.0,0.00023,7]
[374450642,1753305048941,-151.0,0.00023,7]
[374450644,1753305048950,-151.0,0.00023,7]
[374450646,1753305048960,-421.795716,0.00023,7]
[374450648,1753305048973,-421.795716,0.00023,7]
[374450650,1753305048982,-231.325386,0.00023,7]
[374450652,1753305048991,-231.325386,0.00023,7]
[374450654,1753305048999,-231.325386,0.00023,7]
[374450656,1753305049009,-231.325386,0.00023,7]
[374450658,1753305049018,-891.964585,0.00023,7]
[374450660,1753305049027,-891.964585,0.00023,7]
[374450662,1753305049037,-151.0,0.00023,7]
[374450664,1753305049046,-151.0,0.00023,7]
[374450666,1753305049056,-151.0,0.00023,7]
[374450668,1753305049065,-151.0,0.00023,7]
[374450670,1753305049074,-213.131803,0.00023,7]
[374450672,1753305049083,-200.0,0.00023,2]
[374450674,1753305049093,-282.286241,0.00023,7]
[374450676,1753305049102,-282.286241,0.00023,7]
[374450678,1753305049112,-282.286241,0.00023,7]
[374450680,1753305049121,-282.286241,0.00023,7]
[374450682,1753305049130,-365.072147,0.00023,7]
[374450684,1753305049140,-365.072147,0.00023,7]
[374450686,1753305049149,-159.788849,0.00023,7]
[374450688,1753305049158,-159.788849,0.00023,7]
[374450690,1753305049168,-625.128299,0.00023,7]
[374450692,1753305049178,-625.128299,0.00023,7]
[374450694,1753305049186,-151.0,0.00023,7]
[374450696,1753305049197,-2069.97,0.00023,2]
[374450698,1753305049207,-151.0,0.00023,2]
[374450700,1753305049216,-151.0,0.00023,2]
[374450702,1753305049229,-151.0,0.00023,7]
[374450704,1753305049239,-151.0,0.00023,7]
[374450706,1753305049248,-1102.697874,0.00023,7]
[374450708,1753305049258,-1102.697874,0.00023,7]
[374450710,1753305049268,-162.568138,0.00023,7]
[374450712,1753305049278,-162.568138,0.00023,7]
[374450714,1753305049288,-151.420775,0.00023,7]
[374450716,1753305049297,-151.0,0.00023,7]
[374450718,1753305049307,-231.11583447,0.00023,3]
[374450720,1753305049317,-194.659534,0.00023,7]
[374450722,1753305049326,-194.659534,0.00023,7]
[374450724,1753305049337,-184.57566,0.00023,7]
[374450726,1753305049347,-184.57566,0.00023,7]
[374450728,1753305049358,-3815.37,0.00023,7]
[374450730,1753305049367,-151.0,0.00023,7]
[374450732,1753305049377,-151.0,0.00023,7]
[374450734,1753305049387,-151.0,0.00023,7]
[374450736,1753305049396,-2267.49,0.00023,7]
[374450738,1753305049405,-12443.44751201,0.00023,7]
[374450770,1753305049702,-460.0,0.00019178,2]
[374450772,1753305049711,-6333.76583225,0.00023,7]
[374450774,1753305049724,-381.42665574,0.00023,7]
[374450776,1753305049736,-151.0,0.00023,7]
[374450778,1753305049746,-183.13505676,0.00023,2]
[374452336,1753305589002,237.360196,0.00013699,2]
[374452337,1753305589534,-290.0,0.00019177,2]
[374452338,1753305589556,-467.0,0.00019177,2]
[374452342,1753305936111,-480.25458349,0.00018985,2]
[374452343,1753305936133,-235.49050547,0.00019078,2]
[374452344,1753305936154,-300.0,0.00019177,2]
[374452345,1753305936176,-436.0,0.00019177,2]
[374452346,1753305936197,-460.0,0.00019178,2]
[374452347,1753305936220,-460.0,0.00019178,2]
[374452348,1753305936241,-273.61519022,0.00019178,2]
[374452349,1753305941384,-870.54053639,0.00018795,2]
[374452352,1753306029113,-169.48136937,0.00018795,2]
[374452354,1753306048533,-1198.92946237,0.00018795,2]
[374452355,1753306051124,-19.89306788,0.00018795,2]
[374452356,1753306051145,-188.39240436,0.00019077,2]
[374452357,1753306051165,-458.8170652,0.00019177,2]
[374452358,1753306165088,-750.7682,0.00018,2]
[374452404,1753306232013,-104.6318,0.00018,2]
[374452405,1753306232023,-150.71392348,0.000187,2]
[374452406,1753306232031,-150.71392347,0.00018795,2]
[374452407,1753306232041,-150.71392347,0.00018889,2]
[374452408,1753306232050,-2194.30904802,0.000189,2]
[374452409,1753306232060,-150.71392347,0.00018983,2]
[374452410,1753306232073,-150.71392347,0.00019078,2]
[374452411,1753306232082,-126.1829348,0.00019177,2]
[374452412,1753306232091,-485.75699781,0.00019178,2]
[374452413,1753306232101,-460.0,0.00019178,2]
[374452414,1753306232111,-460.0,0.00019178,2]
[374452415,1753306232120,-460.0,0.00019178,2]
[374452416,1753306232129,-460.0,0.00019178,2]
[374452417,1753306232138,-460.0,0.00019178,2]
[374452418,1753306232148,-460.0,0.00019178,2]
[374452420,1753306232158,-33.89382084,0.00019178,2]
[374452421,1753306232171,-426.10617916,0.00019178,2]
[374452422,1753306232179,-460.0,0.00019178,2]
[374452423,1753306232191,-460.0,0.00019178,2]
[374452424,1753306232200,-460.0,0.00019178,2]
[374452425,1753306232209,-460.0,0.00019178,2]
[374452426,1753306232218,-460.0,0.00019178,2]
[374452427,1753306232227,-460.0,0.00019178,2]
[374452428,1753306232236,-460.0,0.00019178,2]
[374452429,1753306232246,-472.11330384,0.00019178,2]
[374452430,1753306232255,-460.0,0.00019178,2]
[374452431,1753306232265,-460.0,0.00019178,2]
[374452432,1753306232274,-495.2433917,0.00019178,2]
[374452433,1753306232283,-666.0,0.00019178,2]
[374452434,1753306232293,-241.808473,0.00019178,2]
[374452435,1753306232302,-460.0,0.00019452,2]
[374452436,1753306232312,-460.0,0.00019452,2]
[374452437,1753306232321,-191.30406378,0.00019452,2]
[374452438,1753306232330,-375.93724617,0.00019549,2]
[374452439,1753306232340,-605.13145932,0.00019648,2]
[374452440,1753306232349,-460.0,0.00019648,2]
[374452441,1753306232359,-460.0,0.00019648,2]
[374452442,1753306232368,-714.81,0.00019648,2]
[374452443,1753306232377,-460.0,0.00019648,2]
[374452444,1753306232387,-460.0,0.00019648,2]
[374452445,1753306232396,-460.0,0.00019648,2]
[374452446,1753306232406,-460.0,0.00019648,2]
[374452447,1753306232415,-460.0,0.00019648,2]
[374452448,1753306232424,-628.07,0.00019648,2]
[374452449,1753306232433,-195.21239172,0.00019648,2]
[374452450,1753306232445,-460.0,0.00019648,2]
[374452451,1753306232454,-460.0,0.00019648,2]
[374452452,1753306232465,-460.0,0.00019648,2]
[374452453,1753306232474,-460.0,0.00019648,2]
[374452454,1753306232484,-613.23,0.00019648,2]
[374452455,1753306232493,-518.72,0.00019648,2]
[374452456,1753306232502,-1602.54,0.00019648,2]
[374452457,1753306232512,-460.0,0.00019648,2]
[374452458,1753306232521,-542.78,0.00019648,2]
[374452459,1753306232530,-617.28344187,0.00019648,2]
[374452460,1753306232539,-460.0,0.00019649,2]
[374452461,1753306232549,-460.0,0.00019649,2]
[374452462,1753306232558,-462.07381751,0.00019649,2]
[374452463,1753306232567,-465.75907525,0.00019649,2]
[374452464,1753306232577,-460.0,0.00019649,2]
[374452465,1753306232586,-460.0,0.00019649,2]
[374452466,1753306232596,-352.85766504,0.00019649,2]
[374452467,1753306232605,-460.0,0.00019649,2]
[374452468,1753306232614,-249.56249009,0.00019649,2]
[374452469,1753306232624,-46.28320425,0.00019649,2]
[374452475,1753306232717,-525.62679575,0.00019649,2]
[374452477,1753306232726,-918.82,0.00019649,2]
[374452478,1753306232736,-460.0,0.00019649,2]
[374452479,1753306232745,-460.0,0.00019649,2]
[374452480,1753306232754,-460.0,0.0001965,2]
[374452481,1753306232763,-462.18515848,0.0001965,2]
[374452482,1753306232773,-413.4079495,0.0001965,2]
[374452483,1753306232782,-460.0,0.0001965,2]
[374452484,1753306232792,-460.0,0.0001965,2]
[374452485,1753306232801,-460.0,0.0001965,2]
[374452486,1753306232811,-462.60221415,0.0001965,2]
[374452487,1753306232820,-460.0,0.0001965,2]
[374452488,1753306232829,-460.0,0.0001965,2]
[374452489,1753306232838,-460.0,0.0001965,2]
[374452490,1753306232848,-460.0,0.0001965,2]
[374452491,1753306232857,-460.0,0.0001965,2]
[374452492,1753306232866,-460.0,0.0001965,2]
[374452493,1753306232875,-460.0,0.0001965,2]
[374452494,1753306232885,-460.0,0.0001965,2]
[374452495,1753306232894,-460.0,0.0001965,2]
[374452496,1753306232904,-460.0,0.0001965,2]
[374452497,1753306232912,-460.0,0.0001965,2]
[374452498,1753306232922,-460.0,0.0001965,2]
[374452499,1753306232932,-460.0,0.0001965,2]
[374452500,1753306232943,-460.0,0.0001965,2]
[374452501,1753306232953,-373.10197362,0.0001965,2]
[374452521,1753306238180,-196.37480375,0.00019647,2]
[374452522,1753306238190,-460.0,0.00019648,2]
[374452523,1753306238201,-86.89802638,0.0001965,2]
[374452524,1753306238211,-460.0,0.0001965,2]
[374452525,1753306238220,-460.0,0.0001965,2]
[374452526,1753306238229,-151.92883581,0.0001965,2]
[374452527,1753306238241,-308.07116419,0.0001965,2]
[374452528,1753306238251,-460.0,0.0001965,2]
[374452529,1753306238260,-132.2586937,0.00019651,2]
[374452530,1753306238296,-327.7413063,0.00019651,2]
[374452531,1753306238305,-460.0,0.00019651,2]
[374452532,1753306238315,-460.0,0.00019652,2]
[374452533,1753306238326,-460.0,0.00019652,2]
[374452534,1753306238336,-460.0,0.00019652,2]
[374452535,1753306238348,-643.4,0.00019652,2]
[374452536,1753306238358,-460.0,0.00019652,2]
[374452537,1753306238368,-472.82,0.00019652,2]
[374452538,1753306238378,-460.0,0.00019652,2]
[374452539,1753306238388,-564.62,0.00019652,2]
[374452540,1753306238397,-460.0,0.00019652,2]
[374452541,1753306238407,-460.0,0.00019652,2]
[374452542,1753306238416,-460.0,0.00019652,2]
[374452543,1753306238425,-460.0,0.00019652,2]
[374452544,1753306238435,-460.0,0.00019652,2]
[374452545,1753306238444,-460.0,0.00019652,2]
[374452546,1753306238455,-4648.00211609,0.00019652,2]
[374452547,1753306238464,-460.0,0.00019726,2]
[374452548,1753306238475,-150.0,0.00019744,2]
[374452549,1753306238484,-354.96858183,0.00019922,2]
[374452550,1753306238494,-714.81,0.00019922,2]
[374452551,1753306238503,-460.0,0.00019922,2]
[374452552,1753306238513,-460.0,0.00019922,2]
[374452553,1753306238522,-628.07,0.00019922,2]
[374452554,1753306238532,-460.0,0.00019922,2]
[374452555,1753306238541,-460.0,0.00019922,2]
[374452556,1753306238551,-613.23,0.00019922,2]
[374452557,1753306238560,-1602.54,0.00019922,2]
[374452558,1753306238569,-460.0,0.00019922,2]
[374452559,1753306238580,-460.0,0.00019923,2]
[374452560,1753306238590,-460.0,0.00019923,2]
[374452561,1753306238599,-918.82,0.00019923,2]
[374452562,1753306238609,-460.0,0.00019923,2]
[374452563,1753306238619,-460.0,0.00019924,2]
[374452564,1753306238628,-601.52128618,0.00019924,2]
[374452565,1753306238637,-460.0,0.00019924,2]
[374452566,1753306238647,-460.0,0.00019924,2]
[374452567,1753306238656,-440.53,0.00019924,2]
[374452568,1753306238666,-460.0,0.00019924,2]
[374452569,1753306238676,-460.0,0.00019924,2]
[374452570,1753306238686,-460.0,0.00019924,2]
[374452571,1753306238696,-460.0,0.00019925,2]
[374452572,1753306238705,-460.0,0.00019925,2]
[374452573,1753306238715,-460.0,0.00019926,2]
[374452574,1753306238724,-643.4,0.00019926,2]
[374452575,1753306238735,-460.0,0.00019926,2]
[374452576,1753306238744,-564.62,0.00019926,2]
[374452577,1753306238754,-460.0,0.00019926,2]
[374452578,1753306238763,-460.0,0.00019926,2]
[374452579,1753306238772,-460.0,0.00019926,2]
[374452580,1753306238782,-460.0,0.00019926,2]
[374452581,1753306238791,-460.0,0.00019926,2]
[374452582,1753306238800,-460.0,0.00019926,2]
[374452583,1753306238810,-179.74835231,0.00019988,2]
[374452584,1753306238819,-460.0,0.00019999,2]
[374452585,1753306238828,-460.0,0.00019999,2]
[374452586,1753306238838,-460.0,0.00019999,2]
[374452587,1753306238847,-391.75247045,0.00019999,2]
[374452588,1753306238856,-333.36683095,0.00019999,2]
[374452589,1753306238866,-460.0,0.00019999,2]
[374452590,1753306239012,-462.27660256,0.00019999,2]
[374452591,1753306239030,-460.0,0.00019999,2]
[374452592,1753306239040,-460.0,0.00019999,2]
[374452593,1753306239050,-460.0,0.00019999,2]
[374452594,1753306239060,-466.64434431,0.00019999,2]
[374452595,1753306239071,-388.824487,0.00020002,2]
[374452596,1753306239081,-237.360196,0.00020187,2]
[374452597,1753306239091,-714.81,0.00020196,2]
[374452598,1753306239101,-185.80530974,0.00020196,2]
[374452599,1753306239111,-460.0,0.00020196,2]
[374452600,1753306239122,-628.07,0.00020196,2]
[374452601,1753306239132,-460.0,0.00020196,2]
[374452602,1753306239143,-613.23,0.00020196,2]
[374452603,1753306239155,-1602.54,0.00020196,2]
[374452604,1753306239165,-460.0,0.00020196,2]
[374452605,1753306239174,-918.82,0.00020197,2]
[374452606,1753306239184,-263.25,0.00020197,2]
[374452607,1753306239193,-460.0,0.00020198,2]
[374452608,1753306239205,-245.42480978,0.00020198,2]
[374452609,1753306239215,-460.0,0.00020198,2]
[374452610,1753306239225,-460.0,0.00020198,2]
[374452611,1753306239234,-460.0,0.00020199,2]
[374452612,1753306239244,-460.0,0.00020199,2]
[374452613,1753306239253,-460.0,0.000202,2]
[374452614,1753306239262,-643.4,0.000202,2]
[374452615,1753306239272,-360.26,0.000202,2]
[374452616,1753306239281,-564.62,0.000202,2]